[Event "12th National Amateur Chess-ch 2025"]
[Site "Bihar"]
[Date "2025.03.29"]
[Round "9.8"]
[White "Vikash Nishad"]
[Black "Ayushman Mohanty"]
[Result "1/2-1/2"]
[Annotator "NA RC"]
[ECO "C58"]
[WhiteElo "1752"]
[BlackElo "1827"]
[PlyCount "76"]
[EventDate "2025.03.25"]
[EventCountry "IND"]
[SourceTitle "playchess.com"]
[Source "ChessBase"]
[SourceQuality "1"]
[TimeControl "5400+30"]

1. e4 {[%emt 0:00:53]} e5 {[%emt 0:00:08]} 2. Nf3 {[%emt 0:00:22]} Nc6 {[%emt 0:00:07]} 3. Bc4 {[%emt 0:00:40]} Nf6 {[%emt 0:00:09]} 4. Ng5 {[%emt 0:04:23]} d5 {[%emt 0:00:07]} 5. exd5 {[%emt 0:00:04]} Na5 {[%emt 0:00:03]} 6. Bb5+ {[%emt 0:00:14]} c6 {[%emt 0:00:05]} 7. dxc6 {[%emt 0:00:05]} bxc6 {[%emt 0:00:04]} 8. Bd3 {[%emt 0:00:45]} Nd5 {[%emt 0:00:12]} 9. Nf3 {[%emt 0:00:20]} Bd6 {[%emt 0:00:05]} 10. O-O {[%emt 0:00:20]} Nf4 {[%emt 0:00:12]} 11. Re1 {[%emt 0:00:34]} Nxd3 {[%emt 0:00:29]} 12. cxd3 {[%emt 0:00:01]} O-O {[%emt 0:00:15]} 13. Nxe5 {[%emt 0:02:58]} Re8 {[%emt 0:01:10]} 14. d4 {[%emt 0:04:01]} Qc7 {[%emt 0:07:48]} 15. h3 {[%emt 0:06:15]} c5 {[%emt 0:02:18]} 16. d3 {[%emt 0:09:43]} cxd4 {[%emt 0:01:48]} 17. Nf3 {[%emt 0:02:43]} Rxe1+ {[%emt 0:15:38]} 18. Qxe1 {[%emt 0:00:15]} Nc6 {[%emt 0:00:09]} 19. Bf4 {[%emt 0:03:07]} Bf5 {[%emt 0:07:25]} 20. Bxd6 {[%emt 0:00:28]} Qxd6 {[%emt 0:00:06]} 21. Qd2 {[%emt 0:05:03]} Nb4 {[%emt 0:02:16]} 22. Na3 {[%emt 0:01:40]} Bxd3 {[%emt 0:03:17]} 23. b3 {[%emt 0:03:35]} Rd8 {[%emt 0:03:15]} 24. Rd1 {[%emt 0:01:03]} a5 {[%emt 0:04:17]} 25. Qg5 {[%emt 0:03:55]} Qb6 {[%emt 0:09:00]} 26. Qf4 {[%emt 0:04:46]} f6 {[%emt 0:02:10]} 27. h4 {[%emt 0:02:29]} Qc5 {[%emt 0:03:21]} 28. Rc1 {[%emt 0:07:04]} Qd6 {[%emt 0:15:09]} 29. Qxd6 {[%emt 0:00:36]} Rxd6 {[%emt 0:00:04]} 30. Rd1 {[%emt 0:00:08]} Rd5 {[%emt 0:05:18]} 31. Rd2 {[%emt 0:00:47]} a4 {[%emt 0:02:28]} 32. bxa4 {[%emt 0:00:52]} Ra5 {[%emt 0:00:10]} 33. Nb5 {[%emt 0:02:43]} Rxa4 {[%emt 0:00:49]} 34. Nbxd4 {[%emt 0:00:24]} Rxa2 {[%emt 0:00:13]} 35. Rxa2 {[%emt 0:02:26]} Nxa2 {[%emt 0:00:05]} 36. g4 {[%emt 0:01:57]} Nc3 {[%emt 0:00:07]} 37. Kg2 {[%emt 0:00:33]} Be4 {[%emt 0:00:07]} 38. Kg3 {[%emt 0:00:19]} Bxf3 {[%emt 0:00:06]} 1/2-1/2

[Event "12th National Amateur Chess-ch 2025"]
[Site "Bihar"]
[Date "2025.03.29"]
[Round "9.9"]
[White "Gadge Vedant"]
[Black "Prashant Kumar Singh"]
[Result "1-0"]
[Annotator "NA RC"]
[ECO "A08"]
[WhiteElo "1667"]
[BlackElo "1651"]
[PlyCount "93"]
[EventDate "2025.03.25"]
[EventCountry "IND"]
[SourceTitle "playchess.com"]
[Source "ChessBase"]
[SourceQuality "1"]
[TimeControl "5400+30"]

1. Nf3 {[%emt 0:00:14]} d5 {[%emt 0:00:11]} 2. d3 {[%emt 0:00:51]} c5 {[%emt 0:00:50]} 3. Nbd2 {[%emt 0:00:00]} Nf6 {[%emt 0:00:51]} 4. g3 {[%emt 0:00:00]} Nc6 {[%emt 0:00:34]} 5. Bg2 {[%emt 0:00:49]} g6 {[%emt 0:00:41]} 6. O-O {[%emt 0:00:00]} Bg7 {[%emt 0:00:36]} 7. Re1 {[%emt 0:00:48]} O-O {[%emt 0:00:23]} 8. e4 {[%emt 0:00:00]} e5 {[%emt 0:00:32]} 9. exd5 {[%emt 0:02:40]} Nxd5 {[%emt 0:00:17]} 10. Nc4 {[%emt 0:00:16]} f6 {[%emt 0:01:13]} 11. a4 {[%emt 0:00:40]} Bg4 {[%emt 0:02:39]} 12. c3 {[%emt 0:01:01]} Qd7 {[%emt 0:05:42]} 13. Nfxe5 {[%emt 0:01:03]} Nxe5 {[%emt 0:05:40]} 14. Nxe5 {[%emt 0:00:12]} fxe5 {[%emt 0:00:44]} 15. Bxd5+ {[%emt 0:00:08]} Qxd5 {[%emt 0:03:46]} 16. Qxg4 {[%emt 0:00:09]} Qxd3 {[%emt 0:00:43]} 17. Be3 {[%emt 0:00:21]} b6 {[%emt 0:01:24]} 18. Rad1 {[%emt 0:01:42]} Qf5 {[%emt 0:02:28]} 19. Qc4+ {[%emt 0:00:06]} Rf7 {[%emt 0:01:28]} 20. Rd2 {[%emt 0:00:15]} h5 {[%emt 0:01:25]} 21. h4 {[%emt 0:00:13]} Kh7 {[%emt 0:01:15]} 22. a5 {[%emt 0:01:01]} Raf8 {[%emt 0:03:39]} 23. axb6 {[%emt 0:01:33]} axb6 {[%emt 0:00:02]} 24. Qb5 {[%emt 0:00:13]} Rf6 {[%emt 0:05:57]} 25. Qd7 {[%emt 0:00:59]} Qf3 {[%emt 0:07:14]} 26. Rd6 {[%emt 0:01:43]} R8f7 {[%emt 0:02:36]} 27. Rxf6 {[%emt 0:00:46]} Qxf6 {[%emt 0:00:11]} 28. Qd2 {[%emt 0:00:27]} Qc6 {[%emt 0:04:26]} 29. Rd1 {[%emt 0:00:17]} Qb5 {[%emt 0:00:22]} 30. Qd5 {[%emt 0:00:31]} Qe8 {[%emt 0:04:56]} 31. Ra1 {[%emt 0:01:34]} Bh6 {[%emt 0:01:49]} 32. Bxh6 {[%emt 0:02:44]} Kxh6 {[%emt 0:01:14]} 33. Ra8 {[%emt 0:00:33]} Qd7 {[%emt 0:06:12]} 34. Rh8+ {[%emt 0:01:12]} Kg7 {[%emt 0:00:57]} 35. Qxe5+ {[%emt 0:00:20]} Rf6 {[%emt 0:00:09]} 36. Rf8 {[%emt 0:01:58]} Qd1+ {[%emt 0:07:39]} 37. Kh2 {[%emt 0:00:16]} Qf3 {[%emt 0:00:06]} 38. Qxf6+ {[%emt 0:00:08]} Qxf6 {[%emt 0:00:02]} 39. Rxf6 {[%emt 0:00:10]} Kxf6 {[%emt 0:00:16]} 40. f3 {[%emt 0:00:05]} c4 {[%emt 0:00:47]} 41. Kg2 {[%emt 0:00:06]} Ke5 {[%emt 0:01:16]} 42. Kf2 {[%emt 0:02:12]} Kf5 {[%emt 0:02:06]} 43. Ke3 {[%emt 0:00:00]} Ke5 {[%emt 0:00:12]} 44. g4 {[%emt 0:00:57]} b5 {[%emt 0:01:01]} 45. f4+ Kd5 {[%emt 0:01:00]} 46. f5 {[%emt 0:00:00]} gxf5 {[%emt 0:00:37]} 47. gxh5 {[%emt 0:00:00]} 1-0

[Event "12th National Amateur Chess-ch 2025"]
[Site "Bihar"]
[Date "2025.03.29"]
[Round "9.10"]
[White "Pathak Anshu Kr"]
[Black "Aole Sangharsh"]
[Result "1-0"]
[Annotator "NA RC"]
[ECO "B24"]
[WhiteElo "1585"]
[BlackElo "1664"]
[PlyCount "77"]
[EventDate "2025.03.25"]
[EventCountry "IND"]
[SourceTitle "playchess.com"]
[Source "ChessBase"]
[SourceQuality "1"]
[TimeControl "5400+30"]

1. e4 {[%emt 0:00:18]} c5 {[%emt 0:00:08]} 2. Nc3 {[%emt 0:00:04]} e6 {[%emt 0:00:12]} 3. f4 {[%emt 0:00:07]} d6 {[%emt 0:00:00]} 4. Nf3 {[%emt 0:00:39]} Be7 {[%emt 0:00:18]} 5. d3 {[%emt 0:01:12]} a6 {[%emt 0:00:20]} 6. g3 {[%emt 0:01:14]} Nf6 {[%emt 0:00:15]} 7. Bg2 {[%emt 0:01:23]} O-O {[%emt 0:00:47]} 8. O-O {[%emt 0:00:37]} Nc6 {[%emt 0:00:30]} 9. a3 {[%emt 0:04:02]} Qc7 {[%emt 0:01:59]} 10. h3 {[%emt 0:01:59]} Rb8 {[%emt 0:02:53]} 11. g4 {[%emt 0:01:43]} b5 {[%emt 0:03:07]} 12. Ne2 {[%emt 0:08:28]} d5 {[%emt 0:04:34]} 13. e5 {[%emt 0:10:05]} Ne8 {[%emt 0:00:34]} 14. g5 {[%emt 0:04:23]} Kh8 {[%emt 0:04:04]} 15. Ng3 {[%emt 0:08:05]} f6 {[%emt 0:03:58]} 16. Re1 {[%emt 0:24:45]} fxe5 {[%emt 0:09:31]} 17. Nxe5 {[%emt 0:00:42]} Bd6 {[%emt 0:02:52]} 18. Nxc6 {[%emt 0:10:29]} Qxc6 {[%emt 0:00:12]} 19. c4 {[%emt 0:00:50]} Nc7 {[%emt 0:05:34]} 20. Nh5 {[%emt 0:09:51]} Qd7 {[%emt 0:01:10]} 21. cxd5 {[%emt 0:01:04]} Nxd5 {[%emt 0:00:21]} 22. f5 {[%emt 0:01:31]} Rxf5 {[%emt 0:03:51]} 23. Be4 {[%emt 0:00:15]} Rf8 {[%emt 0:00:28]} 24. g6 {[%emt 0:03:02]} Nf6 {[%emt 0:00:40]} 25. Nxf6 {[%emt 0:00:27]} Rxf6 {[%emt 0:00:30]} 26. Qh5 {[%emt 0:02:15]} h6 {[%emt 0:00:48]} 27. Bg5 {[%emt 0:02:29]} Rf8 {[%emt 0:01:01]} 28. Rf1 {[%emt 0:01:16]} Bb7 {[%emt 0:00:54]} 29. Rf7 {[%emt 0:00:45]} Rxf7 {[%emt 0:01:01]} 30. gxf7 {[%emt 0:00:31]} Bxe4 {[%emt 0:00:30]} 31. dxe4 {[%emt 0:00:28]} Kh7 {[%emt 0:01:08]} 32. Rf1 {[%emt 0:00:17]} Rf8 {[%emt 0:01:38]} 33. Rf6 {[%emt 0:00:11]} Rxf7 {[%emt 0:12:50]} 34. Rxf7 {[%emt 0:00:06]} Bh2+ {[%emt 0:01:36]} 35. Kxh2 {[%emt 0:00:13]} Qd6+ {[%emt 0:00:09]} 36. Kg2 {[%emt 0:00:28]} Qd4 {[%emt 0:00:56]} 37. Qxh6+ {[%emt 0:00:34]} Kg8 {[%emt 0:00:06]} 38. Qxe6 {[%emt 0:00:36]} Kh7 {[%emt 0:01:10]} 39. Qf5+ {[%emt 0:00:10]} 1-0

[Event "12th National Amateur Chess-ch 2025"]
[Site "Bihar"]
[Date "2025.03.29"]
[Round "9.11"]
[White "Bala Ganesan"]
[Black "Devansh Keshri"]
[Result "1-0"]
[Annotator "NA RC"]
[ECO "C54"]
[WhiteElo "1656"]
[BlackElo "1633"]
[PlyCount "84"]
[EventDate "2025.03.25"]
[EventCountry "IND"]
[SourceTitle "playchess.com"]
[Source "ChessBase"]
[SourceQuality "1"]
[TimeControl "5400+30"]

1. e4 {[%emt 0:00:40]} e5 {[%emt 0:00:04]} 2. Nf3 {[%emt 0:00:05]} Nc6 {[%emt 0:00:03]} 3. Bc4 {[%emt 0:00:08]} Bc5 {[%emt 0:00:04]} 4. c3 {[%emt 0:00:30]} Nf6 {[%emt 0:00:04]} 5. d4 {[%emt 0:00:31]} exd4 {[%emt 0:00:05]} 6. e5 {[%emt 0:00:09]} d5 {[%emt 0:00:07]} 7. Bb5 {[%emt 0:01:28]} Ne4 {[%emt 0:00:06]} 8. cxd4 {[%emt 0:00:26]} Bb6 {[%emt 0:00:04]} 9. h3 {[%emt 0:00:41]} O-O {[%emt 0:00:43]} 10. O-O {[%emt 0:00:12]} f6 {[%emt 0:00:43]} 11. Be3 {[%emt 0:01:33]} fxe5 {[%emt 0:03:16]} 12. Bxc6 {[%emt 0:00:12]} bxc6 {[%emt 0:01:14]} 13. Nxe5 {[%emt 0:00:11]} Qf6 {[%emt 0:09:12]} 14. f4 {[%emt 0:06:46]} Qh4 {[%emt 0:08:05]} 15. Nd2 {[%emt 0:10:30]} Nd6 {[%emt 0:17:15]} 16. Ndf3 {[%emt 0:06:52]} Qf6 {[%emt 0:04:44]} 17. Rc1 {[%emt 0:02:57]} Bb7 {[%emt 0:08:54]} 18. Nd7 {[%emt 0:04:22]} Qe7 {[%emt 0:00:54]} 19. Nfe5 {[%emt 0:00:15]} Rfd8 {[%emt 0:01:46]} 20. Nc5 {[%emt 0:05:08]} Bxc5 {[%emt 0:01:02]} 21. Rxc5 {[%emt 0:02:21]} Nf7 {[%emt 0:06:55]} 22. Qh5 {[%emt 0:03:53]} Nxe5 {[%emt 0:01:27]} 23. fxe5 {[%emt 0:09:14]} Rf8 {[%emt 0:00:45]} 24. a3 {[%emt 0:05:53]} Rxf1+ {[%emt 0:10:13]} 25. Kxf1 {[%emt 0:00:03]} Rf8+ {[%emt 0:00:34]} 26. Kg1 {[%emt 0:00:38]} Qe6 {[%emt 0:01:47]} 27. Qh4 {[%emt 0:02:19]} Qf7 {[%emt 0:02:48]} 28. Rc1 {[%emt 0:01:14]} Qg6 {[%emt 0:02:12]} 29. Bd2 {[%emt 0:02:21]} Qd3 {[%emt 0:02:49]} 30. Bb4 {[%emt 0:13:43]} Qe3+ {[%emt 0:00:59]} 31. Kh2 {[%emt 0:00:04]} g5 {[%emt 0:04:51]} 32. Rc3 {[%emt 0:01:53]} Qf4+ {[%emt 0:03:03]} 33. Qg3 {[%emt 0:00:12]} Qxg3+ {[%emt 0:02:45]} 34. Rxg3 {[%emt 0:00:09]} Re8 {[%emt 0:02:57]} 35. Rxg5+ {[%emt 0:00:14]} Kf7 {[%emt 0:00:06]} 36. Rf5+ {[%emt 0:01:30]} Kg7 {[%emt 0:00:38]} 37. Rf6 {[%emt 0:00:19]} Rd8 {[%emt 0:01:25]} 38. g4 {[%emt 0:00:21]} Rd7 {[%emt 0:00:25]} 39. e6 {[%emt 0:03:18]} Rd6 {[%emt 0:03:07]} 40. Rf7+ {[%emt 0:00:18]} Kg6 {[%emt 0:00:24]} 41. Bxd6 {[%emt 0:00:07]} Bc8 {[%emt 0:00:29]} 42. Rxc7 {[%emt 0:00:20]} Kf6 {[%emt 0:01:10]} 1-0

[Event "12th National Amateur Chess-ch 2025"]
[Site "Bihar"]
[Date "2025.03.29"]
[Round "9.12"]
[White "Vamsi Krishna, R."]
[Black "Jayesh Mishra"]
[Result "1/2-1/2"]
[Annotator "NA RC"]
[ECO "D94"]
[WhiteElo "1620"]
[BlackElo "1654"]
[PlyCount "102"]
[EventDate "2025.03.25"]
[EventCountry "IND"]
[SourceTitle "playchess.com"]
[Source "ChessBase"]
[SourceQuality "1"]
[TimeControl "5400+30"]

1. Nf3 {[%emt 0:01:56]} d5 {[%emt 0:00:36]} 2. d4 {[%emt 0:02:06]} Nf6 {[%emt 0:00:31]} 3. e3 {[%emt 0:00:15]} g6 {[%emt 0:00:50]} 4. c4 {[%emt 0:00:28]} c6 {[%emt 0:00:12]} 5. Nc3 {[%emt 0:00:12]} Bg7 {[%emt 0:00:40]} 6. Be2 {[%emt 0:04:27]} O-O {[%emt 0:00:35]} 7. O-O {[%emt 0:00:23]} Bf5 {[%emt 0:04:23]} 8. cxd5 {[%emt 0:01:09]} cxd5 {[%emt 0:00:09]} 9. Qb3 {[%emt 0:00:13]} b6 {[%emt 0:05:09]} 10. Ne5 {[%emt 0:02:58]} Be6 {[%emt 0:05:29]} 11. Bf3 {[%emt 0:02:00]} Ne4 {[%emt 0:04:37]} 12. Nd3 {[%emt 0:02:08]} Nc6 {[%emt 0:06:56]} 13. Nf4 {[%emt 0:02:36]} Na5 {[%emt 0:02:23]} 14. Qb5 {[%emt 0:01:49]} Nxc3 {[%emt 0:03:15]} 15. bxc3 {[%emt 0:00:18]} a6 {[%emt 0:00:25]} 16. Qb4 {[%emt 0:00:26]} Rc8 {[%emt 0:03:58]} 17. Ba3 {[%emt 0:00:30]} Bf6 {[%emt 0:03:31]} 18. e4 {[%emt 0:02:46]} dxe4 {[%emt 0:03:22]} 19. Nxe6 {[%emt 0:00:02]} fxe6 {[%emt 0:00:45]} 20. Bxe4 {[%emt 0:00:06]} Nc4 {[%emt 0:00:32]} 21. Bc1 {[%emt 0:05:57]} a5 {[%emt 0:07:16]} 22. Qb3 {[%emt 0:02:38]} Kg7 {[%emt 0:03:48]} 23. Rb1 {[%emt 0:01:14]} e5 {[%emt 0:01:44]} 24. Bd3 {[%emt 0:03:16]} Nd6 {[%emt 0:00:27]} 25. Be3 {[%emt 0:00:15]} e4 {[%emt 0:01:10]} 26. Be2 {[%emt 0:03:33]} b5 {[%emt 0:01:27]} 27. Bxb5 {[%emt 0:01:15]} Nxb5 {[%emt 0:00:35]} 28. Qxb5 {[%emt 0:00:04]} Rxc3 {[%emt 0:00:41]} 29. d5 {[%emt 0:12:14]} Qa8 {[%emt 0:03:30]} 30. Rfd1 {[%emt 0:03:28]} Rd8 {[%emt 0:01:59]} 31. g3 {[%emt 0:01:51]} Rd3 {[%emt 0:01:34]} 32. Rxd3 {[%emt 0:01:48]} exd3 {[%emt 0:00:05]} 33. Qc6 {[%emt 0:06:06]} Qxc6 {[%emt 0:07:08]} 34. dxc6 {[%emt 0:00:17]} Rc8 {[%emt 0:02:53]} 35. Rc1 {[%emt 0:12:08]} Kf7 {[%emt 0:06:46]} 36. Kf1 {[%emt 0:03:30]} Ke6 {[%emt 0:02:10]} 37. a4 {[%emt 0:07:22]} Kd6 {[%emt 0:01:23]} 38. Bd2 {[%emt 0:03:31]} Rxc6 {[%emt 0:01:01]} 39. Rxc6+ {[%emt 0:00:01]} Kxc6 {[%emt 0:00:01]} 40. Bxa5 {[%emt 0:00:23]} Kc5 {[%emt 0:00:43]} 41. Ke1 {[%emt 0:00:54]} Kc4 {[%emt 0:00:15]} 42. Kd2 {[%emt 0:00:21]} Bd4 {[%emt 0:00:30]} 43. f4 {[%emt 0:00:21]} Bg1 {[%emt 0:00:19]} 44. Bc7 {[%emt 0:02:05]} Bxh2 {[%emt 0:00:27]} 45. a5 {[%emt 0:02:07]} Kb5 {[%emt 0:05:25]} 46. g4 {[%emt 0:03:23]} g5 {[%emt 0:00:29]} 47. Bd8 {[%emt 0:00:53]} Bxf4+ {[%emt 0:05:55]} 48. Kxd3 {[%emt 0:00:13]} e6 {[%emt 0:00:34]} 49. Ke4 {[%emt 0:00:21]} Ka6 {[%emt 0:01:30]} 50. Bxg5 {[%emt 0:01:36]} Bxg5 {[%emt 0:00:19]} 51. Ke5 {[%emt 0:00:38]} Bf4+ {[%emt 0:00:11]} 1/2-1/2

[Event "12th National Amateur Chess-ch 2025"]
[Site "Bihar"]
[Date "2025.03.29"]
[Round "9.13"]
[White "Nivedita V C"]
[Black "Bristy Mukherjee"]
[Result "1/2-1/2"]
[Annotator "NA RC"]
[ECO "D11"]
[WhiteElo "1950"]
[BlackElo "1985"]
[PlyCount "57"]
[EventDate "2025.03.25"]
[EventCountry "IND"]
[SourceTitle "playchess.com"]
[Source "ChessBase"]
[SourceQuality "1"]
[TimeControl "5400+30"]

1. d4 {[%emt 0:00:02]} d5 {[%emt 0:00:45]} 2. c4 {[%emt 0:00:06]} c6 {[%emt 0:00:21]} 3. Nf3 {[%emt 0:00:07]} Nf6 {[%emt 0:00:05]} 4. g3 {[%emt 0:00:16]} h6 {[%emt 0:00:57]} 5. Bg2 {[%emt 0:00:14]} Bf5 {[%emt 0:00:28]} 6. O-O {[%emt 0:01:02]} e6 {[%emt 0:00:19]} 7. Nc3 {[%emt 0:00:33]} Be7 {[%emt 0:00:21]} 8. Nd2 {[%emt 0:06:30]} O-O {[%emt 0:03:25]} 9. e4 {[%emt 0:01:25]} dxe4 {[%emt 0:00:11]} 10. Ndxe4 {[%emt 0:00:04]} Nxe4 {[%emt 0:01:03]} 11. Nxe4 {[%emt 0:00:09]} Nd7 {[%emt 0:00:28]} 12. Be3 {[%emt 0:03:51]} Nf6 {[%emt 0:05:04]} 13. Nxf6+ {[%emt 0:00:20]} Bxf6 {[%emt 0:00:06]} 14. Qb3 {[%emt 0:01:46]} Qb6 {[%emt 0:20:27]} 15. d5 {[%emt 0:27:15]} c5 {[%emt 0:01:50]} 16. dxe6 {[%emt 0:02:37]} fxe6 {[%emt 0:00:58]} 17. Rad1 {[%emt 0:15:56]} Rad8 {[%emt 0:02:49]} 18. Bxb7 {[%emt 0:15:45]} Bxb2 {[%emt 0:03:23]} 19. Bg2 {[%emt 0:07:13]} Qxb3 {[%emt 0:19:52]} 20. axb3 {[%emt 0:00:08]} Bc2 {[%emt 0:01:04]} 21. Rxd8 {[%emt 0:01:08]} Rxd8 {[%emt 0:00:04]} 22. Bxc5 {[%emt 0:00:33]} Bxb3 {[%emt 0:00:34]} 23. Bxa7 {[%emt 0:00:25]} Bxc4 {[%emt 0:00:06]} 24. Rb1 {[%emt 0:00:07]} Bf6 {[%emt 0:00:54]} 25. Re1 {[%emt 0:00:07]} Bb2 {[%emt 0:00:04]} 26. Rb1 {[%emt 0:00:03]} Bf6 {[%emt 0:00:03]} 27. Re1 {[%emt 0:00:04]} Bb2 {[%emt 0:00:03]} 28. Rb1 {[%emt 0:00:03]} Bf6 {[%emt 0:00:04]} 29. Re1 {[%emt 0:00:14]} 1/2-1/2

[Event "12th National Amateur Chess-ch 2025"]
[Site "Bihar"]
[Date "2025.03.29"]
[Round "9.14"]
[White "Marium Fatima"]
[Black "Diya Chowdhury"]
[Result "1/2-1/2"]
[Annotator "NA RC"]
[ECO "E05"]
[WhiteElo "1881"]
[BlackElo "1939"]
[PlyCount "61"]
[EventDate "2025.03.25"]
[EventCountry "IND"]
[SourceTitle "playchess.com"]
[Source "ChessBase"]
[SourceQuality "1"]
[TimeControl "5400+30"]

1. d4 {[%emt 0:00:02]} Nf6 {[%emt 0:00:07]} 2. c4 {[%emt 0:00:06]} e6 {[%emt 0:00:10]} 3. g3 {[%emt 0:00:10]} d5 {[%emt 0:00:24]} 4. Bg2 {[%emt 0:00:06]} Be7 {[%emt 0:00:14]} 5. Nf3 {[%emt 0:00:07]} O-O {[%emt 0:00:12]} 6. O-O {[%emt 0:00:05]} dxc4 {[%emt 0:00:21]} 7. Qc2 {[%emt 0:00:13]} a6 {[%emt 0:00:16]} 8. a4 {[%emt 0:00:05]} Bd7 {[%emt 0:00:16]} 9. Qxc4 {[%emt 0:00:07]} Bc6 {[%emt 0:00:17]} 10. Bg5 {[%emt 0:00:49]} Nbd7 {[%emt 0:00:53]} 11. Nc3 {[%emt 0:02:01]} Nb6 {[%emt 0:01:28]} 12. Qd3 {[%emt 0:01:49]} a5 {[%emt 0:04:49]} 13. Rfd1 {[%emt 0:07:25]} h6 {[%emt 0:05:19]} 14. Bxf6 {[%emt 0:00:09]} Bxf6 {[%emt 0:00:06]} 15. e3 {[%emt 0:04:16]} Qe7 {[%emt 0:05:06]} 16. Nd2 {[%emt 0:01:17]} Bxg2 {[%emt 0:15:39]} 17. Kxg2 {[%emt 0:00:02]} Nd5 {[%emt 0:03:06]} 18. e4 {[%emt 0:11:35]} Nb4 {[%emt 0:01:01]} 19. Qc4 {[%emt 0:00:33]} Qd7 {[%emt 0:03:23]} 20. Nf3 {[%emt 0:04:14]} Rfd8 {[%emt 0:03:24]} 21. Rd2 {[%emt 0:05:19]} Ra6 {[%emt 0:06:49]} 22. Rad1 {[%emt 0:00:57]} Qc6 {[%emt 0:02:29]} 23. Qxc6 {[%emt 0:01:19]} Rxc6 {[%emt 0:00:09]} 24. e5 {[%emt 0:08:15]} Be7 {[%emt 0:03:50]} 25. d5 {[%emt 0:03:17]} Nxd5 {[%emt 0:04:31]} 26. Nxd5 {[%emt 0:00:11]} Rxd5 {[%emt 0:00:21]} 27. Rxd5 {[%emt 0:00:11]} exd5 {[%emt 0:00:01]} 28. Rxd5 {[%emt 0:00:11]} Rc5 {[%emt 0:05:58]} 29. Rxc5 {[%emt 0:02:08]} Bxc5 {[%emt 0:00:02]} 30. Nd2 {[%emt 0:01:25]} Kf8 {[%emt 0:01:07]} 31. f4 {[%emt 0:00:54]} 1/2-1/2

[Event "12th National Amateur Chess-ch 2025"]
[Site "Bihar"]
[Date "2025.03.29"]
[Round "9.15"]
[White "Theephigaa K P"]
[Black "Aamuktha Guntaka"]
[Result "1/2-1/2"]
[Annotator "NA RC"]
[ECO "B99"]
[WhiteElo "1792"]
[BlackElo "1910"]
[PlyCount "77"]
[EventDate "2025.03.25"]
[EventCountry "IND"]
[SourceTitle "playchess.com"]
[Source "ChessBase"]
[SourceQuality "1"]
[TimeControl "5400+30"]

1. e4 {[%emt 0:05:13]} c5 {[%emt 0:00:08]} 2. Nf3 {[%emt 0:00:09]} d6 {[%emt 0:00:10]} 3. d4 {[%emt 0:00:10]} cxd4 {[%emt 0:00:07]} 4. Nxd4 {[%emt 0:00:12]} Nf6 {[%emt 0:00:08]} 5. Nc3 {[%emt 0:00:16]} a6 {[%emt 0:00:09]} 6. Bg5 {[%emt 0:00:15]} e6 {[%emt 0:00:10]} 7. f4 {[%emt 0:00:16]} Be7 {[%emt 0:00:09]} 8. Qf3 {[%emt 0:00:23]} Qc7 {[%emt 0:00:15]} 9. O-O-O {[%emt 0:00:24]} Nbd7 {[%emt 0:00:15]} 10. g4 {[%emt 0:00:26]} b5 {[%emt 0:00:35]} 11. Bxf6 {[%emt 0:01:00]} Nxf6 {[%emt 0:00:11]} 12. g5 {[%emt 0:01:38]} Nd7 {[%emt 0:00:08]} 13. Kb1 {[%emt 0:04:44]} O-O {[%emt 0:09:11]} 14. f5 {[%emt 0:13:21]} b4 {[%emt 0:07:05]} 15. Nce2 {[%emt 0:09:49]} e5 {[%emt 0:03:33]} 16. f6 {[%emt 0:13:32]} exd4 {[%emt 0:00:25]} 17. fxe7 {[%emt 0:01:17]} Re8 {[%emt 0:00:05]} 18. Nxd4 {[%emt 0:02:49]} Ne5 {[%emt 0:00:09]} 19. Qg3 {[%emt 0:03:38]} Be6 {[%emt 0:12:26]} 20. Bh3 {[%emt 0:12:10]} Bxh3 {[%emt 0:25:21]} 21. Qxh3 {[%emt 0:01:29]} Rxe7 {[%emt 0:00:55]} 22. Nf5 {[%emt 0:01:28]} Re6 {[%emt 0:04:42]} 23. Nd4 {[%emt 0:01:29]} Ree8 {[%emt 0:01:36]} 24. Nf5 {[%emt 0:02:17]} Rad8 {[%emt 0:06:09]} 25. Ne3 {[%emt 0:04:40]} Ng6 {[%emt 0:03:26]} 26. Rd4 {[%emt 0:03:32]} Qc5 {[%emt 0:02:13]} 27. Nf5 {[%emt 0:03:04]} Ne7 {[%emt 0:09:29]} 28. Nxe7+ {[%emt 0:05:33]} Rxe7 {[%emt 0:00:06]} 29. Qd3 {[%emt 0:02:20]} Qxg5 {[%emt 0:01:51]} 30. Rxb4 {[%emt 0:04:39]} a5 {[%emt 0:03:16]} 31. Rd4 {[%emt 0:02:08]} Rde8 {[%emt 0:01:10]} 32. Rd1 {[%emt 0:01:31]} h6 {[%emt 0:01:28]} 33. h3 {[%emt 0:00:26]} Re6 {[%emt 0:01:52]} 34. a3 {[%emt 0:00:26]} Qe7 {[%emt 0:01:08]} 35. Rxd6 {[%emt 0:00:21]} Rxe4 {[%emt 0:01:02]} 36. Rd7 {[%emt 0:00:23]} Qe6 {[%emt 0:00:40]} 37. Rd6 {[%emt 0:00:30]} Qe7 {[%emt 0:01:34]} 38. Rd7 {[%emt 0:00:06]} Qe6 {[%emt 0:01:17]} 39. Rd6 {[%emt 0:02:02]} 1/2-1/2

[Event "12th National Amateur Chess-ch 2025"]
[Site "Bihar"]
[Date "2025.03.29"]
[Round "9.16"]
[White "Suravi Bhattacharya"]
[Black "Arushi Severin Helen D Silva"]
[Result "1/2-1/2"]
[Annotator "NA RC"]
[ECO "E09"]
[WhiteElo "1718"]
[BlackElo "1746"]
[PlyCount "60"]
[EventDate "2025.03.25"]
[EventCountry "IND"]
[SourceTitle "playchess.com"]
[Source "ChessBase"]
[SourceQuality "1"]
[TimeControl "5400+30"]

1. d4 {[%emt 0:00:03]} Nf6 {[%emt 0:00:04]} 2. c4 {[%emt 0:00:06]} e6 {[%emt 0:00:04]} 3. g3 {[%emt 0:00:04]} d5 {[%emt 0:02:00]} 4. Bg2 {[%emt 0:00:07]} h6 {[%emt 0:00:34]} 5. Nf3 {[%emt 0:00:12]} Be7 {[%emt 0:00:06]} 6. O-O {[%emt 0:00:07]} O-O {[%emt 0:00:39]} 7. Qc2 {[%emt 0:00:11]} Nbd7 {[%emt 0:01:04]} 8. Nbd2 {[%emt 0:00:09]} c6 {[%emt 0:01:31]} 9. Rd1 {[%emt 0:00:08]} Re8 {[%emt 0:01:00]} 10. e4 {[%emt 0:01:35]} dxe4 {[%emt 0:00:59]} 11. Nxe4 {[%emt 0:00:01]} Nxe4 {[%emt 0:00:35]} 12. Qxe4 {[%emt 0:00:02]} Bf6 {[%emt 0:00:39]} 13. Qc2 {[%emt 0:02:58]} Nb6 {[%emt 0:02:29]} 14. Bf4 {[%emt 0:02:04]} Bd7 {[%emt 0:01:37]} 15. Be5 {[%emt 0:02:09]} Be7 {[%emt 0:03:47]} 16. Nd2 {[%emt 0:05:09]} Nc8 {[%emt 0:14:47]} 17. c5 {[%emt 0:01:40]} Bg5 {[%emt 0:00:59]} 18. Nc4 {[%emt 0:09:58]} Be7 {[%emt 0:03:48]} 19. a4 {[%emt 0:01:10]} Bf6 {[%emt 0:02:48]} 20. Rab1 {[%emt 0:03:50]} Bxe5 {[%emt 0:05:15]} 21. dxe5 {[%emt 0:00:39]} Qc7 {[%emt 0:00:04]} 22. Nd6 {[%emt 0:01:49]} Rf8 {[%emt 0:00:54]} 23. Nxc8 {[%emt 0:02:22]} Bxc8 {[%emt 0:00:24]} 24. Rd6 {[%emt 0:00:33]} f6 {[%emt 0:01:02]} 25. exf6 {[%emt 0:01:24]} Rxf6 {[%emt 0:00:17]} 26. Rbd1 {[%emt 0:00:32]} Rf8 {[%emt 0:00:04]} 27. Bh3 {[%emt 0:10:08]} Qf7 {[%emt 0:03:03]} 28. Rd8 {[%emt 0:04:22]} Qe7 {[%emt 0:07:04]} 29. R8d6 {[%emt 0:02:29]} Qf7 {[%emt 0:00:47]} 30. Rd8 {[%emt 0:01:54]} Qe7 {[%emt 0:01:03]} 1/2-1/2